[Event "Live Chess"]
[Site "Chess.com"]
[Date "2023.05.21"]
[Round "-"]
[White "GMHarry-youtube"]
[Black "sanjesh_ananda"]
[Result "1-0"]
[WhiteElo "2036"]
[BlackElo "1342"]
[TimeControl "300"]
[EndTime "17:07:28 PDT"]
[Termination "GMHarry-youtube won by checkmate"]

1. e4 {[%clk 0:04:57.1]} 1... e5 {[%clk 0:04:58.3]} 2. Nf3 {[%clk 0:04:56.1]}
2... Nf6 {[%clk 0:04:57.2]} 3. Nxe5 {[%clk 0:04:54.7]} 3... Nc6 {[%clk
0:04:56.3]} 4. Nxc6 {[%clk 0:04:53.7]} 4... dxc6 {[%clk 0:04:55.4]} 5. d3 {[%clk
0:04:53.3]} 5... Bc5 {[%clk 0:04:50.9]} 6. Be2 {[%clk 0:04:52.5]} 6... Qd4
{[%clk 0:04:16.4]} 7. O-O {[%clk 0:04:36.6]} 7... h5 {[%clk 0:04:07.8]} 8. c3
{[%clk 0:04:33.6]} 8... Qd6 {[%clk 0:04:01.1]} 9. d4 {[%clk 0:04:31.9]} 9... Ng4
{[%clk 0:03:52.3]} 10. Bxg4 {[%clk 0:04:11.3]} 10... hxg4 {[%clk 0:03:50.7]} 11.
e5 {[%clk 0:04:09.4]} 11... Qg6 {[%clk 0:03:38.5]} 12. dxc5 {[%clk 0:04:07.3]}
12... Qh7 {[%clk 0:03:31.1]} 13. Bf4 {[%clk 0:04:03.9]} 13... g5 {[%clk
0:03:16.5]} 14. Bg3 {[%clk 0:04:01.3]} 14... Bf5 {[%clk 0:02:58.1]} 15. Qb3
{[%clk 0:03:53.5]} 15... O-O-O {[%clk 0:02:52]} 16. Na3 {[%clk 0:03:49.2]} 16...
Be6 {[%clk 0:02:45.5]} 17. Qa4 {[%clk 0:03:43.8]} 17... a6 {[%clk 0:02:28.9]}
18. Rad1 {[%clk 0:03:39.3]} 18... Rdg8 {[%clk 0:02:01.9]} 19. b4 {[%clk
0:03:30.7]} 19... Rg6 {[%clk 0:02:00]} 20. b5 {[%clk 0:03:28.1]} 20... cxb5
{[%clk 0:01:57.8]} 21. Nxb5 {[%clk 0:03:27.1]} 21... Bd7 {[%clk 0:01:42.2]} 22.
Rxd7 {[%clk 0:03:21.9]} 22... axb5 {[%clk 0:01:36]} 23. Qd4 {[%clk 0:03:15.1]}
23... Rh6 {[%clk 0:01:23.7]} 24. Rd1 {[%clk 0:03:12.4]} 24... b6 {[%clk
0:00:25.8]} 25. Rd8+ {[%clk 0:03:06.8]} 25... Rxd8 {[%clk 0:00:18.3]} 26. Qxd8+
{[%clk 0:03:06.7]} 26... Kb7 {[%clk 0:00:17.5]} 27. c6+ {[%clk 0:03:06.6]} 27...
Ka7 {[%clk 0:00:14.6]} 28. Qxc7+ {[%clk 0:03:05.1]} 28... Ka8 {[%clk 0:00:10.2]}
29. Qb7# {[%clk 0:03:05]} 1-0

[Event "Live Chess"]
[Site "Chess.com"]
[Date "2023.05.21"]
[Round "-"]
[White "John_Warren"]
[Black "LL220284LL"]
[Result "0-1"]
[WhiteElo "1256"]
[BlackElo "2333"]
[TimeControl "300"]
[EndTime "17:07:35 PDT"]
[Termination "LL220284LL won on time"]

1. e4 {[%clk 0:04:54]} 1... c6 {[%clk 0:04:58.6]} 2. d4 {[%clk 0:04:50.2]} 2...
d5 {[%clk 0:04:58.5]} 3. e5 {[%clk 0:04:48.1]} 3... Bf5 {[%clk 0:04:58]} 4. Bd3
{[%clk 0:04:45]} 4... Bxd3 {[%clk 0:04:56.1]} 5. Qxd3 {[%clk 0:04:43.2]} 5... e6
{[%clk 0:04:56]} 6. Be3 {[%clk 0:04:40]} 6... Nd7 {[%clk 0:04:54.6]} 7. Ne2
{[%clk 0:04:36]} 7... c5 {[%clk 0:04:53.8]} 8. dxc5 {[%clk 0:04:33.9]} 8... Bxc5
{[%clk 0:04:47.2]} 9. Bxc5 {[%clk 0:04:31.6]} 9... Nxc5 {[%clk 0:04:47.1]} 10.
Qb5+ {[%clk 0:04:28.3]} 10... Nd7 {[%clk 0:04:46.3]} 11. Qxb7 {[%clk 0:04:25.7]}
11... Rb8 {[%clk 0:04:45.5]} 12. Qxa7 {[%clk 0:04:23.6]} 12... Rxb2 {[%clk
0:04:44.9]} 13. Nbc3 {[%clk 0:04:13.8]} 13... Ne7 {[%clk 0:04:41.9]} 14. O-O
{[%clk 0:04:11.6]} 14... O-O {[%clk 0:04:40.3]} 15. a4 {[%clk 0:04:00.5]} 15...
Nxe5 {[%clk 0:04:38]} 16. a5 {[%clk 0:03:53.3]} 16... N7c6 {[%clk 0:04:36.5]}
17. Qe3 {[%clk 0:03:46.8]} 17... d4 {[%clk 0:04:34.4]} 18. Qg3 {[%clk
0:03:39.7]} 18... dxc3 {[%clk 0:04:32.2]} 19. Nxc3 {[%clk 0:03:37.1]} 19... Rxc2
{[%clk 0:04:31.1]} 20. Ne4 {[%clk 0:03:32.7]} 20... Ng6 {[%clk 0:04:24.3]} 21.
a6 {[%clk 0:03:26.8]} 21... Qa8 {[%clk 0:04:19.5]} 22. Nd6 {[%clk 0:03:18.5]}
22... Nd4 {[%clk 0:04:16.9]} 23. Qg4 {[%clk 0:03:04.9]} 23... e5 {[%clk
0:04:11.3]} 24. Nf5 {[%clk 0:02:57.4]} 24... Nxf5 {[%clk 0:04:09.5]} 25. Qxf5
{[%clk 0:02:55.2]} 25... Rc6 {[%clk 0:04:06.7]} 26. Qd3 {[%clk 0:02:51.3]} 26...
Nf4 {[%clk 0:04:05.1]} 27. Qe4 {[%clk 0:02:44.5]} 27... Rg6 {[%clk 0:03:59.7]}
28. Qxa8 {[%clk 0:02:38.2]} 28... Rxa8 {[%clk 0:03:59.6]} 29. g3 {[%clk
0:02:34.9]} 29... Ne2+ {[%clk 0:03:52.4]} 30. Kg2 {[%clk 0:02:30.3]} 30... Nd4
{[%clk 0:03:52.3]} 31. Rfe1 {[%clk 0:02:24.8]} 31... Rgxa6 {[%clk 0:03:49.6]}
32. Rxa6 {[%clk 0:02:22]} 32... Rxa6 {[%clk 0:03:49.5]} 33. Rxe5 {[%clk
0:02:19.9]} 33... f6 {[%clk 0:03:48.3]} 34. Re8+ {[%clk 0:02:17.1]} 34... Kf7
{[%clk 0:03:47.2]} 35. Rd8 {[%clk 0:02:14.7]} 35... Ne6 {[%clk 0:03:45.5]} 36.
Rd7+ {[%clk 0:02:12.5]} 36... Kg6 {[%clk 0:03:44.4]} 37. h4 {[%clk 0:02:04.8]}
37... h5 {[%clk 0:03:43.1]} 38. Rd3 {[%clk 0:02:01]} 38... Ra5 {[%clk
0:03:38.9]} 39. Rb3 {[%clk 0:01:57.2]} 39... Re5 {[%clk 0:03:36.7]} 40. Rb6
{[%clk 0:01:52.6]} 40... Kf5 {[%clk 0:03:35.5]} 41. Rb7 {[%clk 0:01:49]} 41...
g5 {[%clk 0:03:34.5]} 42. hxg5 {[%clk 0:01:47.2]} 42... fxg5 {[%clk 0:03:34]}
43. Rf7+ {[%clk 0:01:43.6]} 43... Kg6 {[%clk 0:03:32.9]} 44. Rb7 {[%clk
0:01:40.2]} 44... Nd4 {[%clk 0:03:31.7]} 45. Rb6+ {[%clk 0:01:37.5]} 45... Re6
{[%clk 0:03:31]} 46. Rb4 {[%clk 0:01:34.4]} 46... Nf5 {[%clk 0:03:30.2]} 47. g4
{[%clk 0:01:30.4]} 47... hxg4 {[%clk 0:03:28]} 48. Rxg4 {[%clk 0:01:27.9]} 48...
Nh4+ {[%clk 0:03:27.6]} 49. Kg3 {[%clk 0:01:18.8]} 49... Kf5 {[%clk 0:03:26.5]}
50. Ra4 {[%clk 0:01:14]} 50... Ng6 {[%clk 0:03:25]} 51. Ra5+ {[%clk 0:01:11.3]}
51... Re5 {[%clk 0:03:24.5]} 52. Ra4 {[%clk 0:01:01.8]} 52... Nf4 {[%clk
0:03:22.9]} 53. Ra7 {[%clk 0:00:53]} 53... Re1 {[%clk 0:03:20.9]} 54. Rf7+
{[%clk 0:00:48.9]} 54... Kg6 {[%clk 0:03:19]} 55. Ra7 {[%clk 0:00:43.9]} 55...
Rg1+ {[%clk 0:03:17.8]} 56. Kf3 {[%clk 0:00:41.4]} 56... Rh1 {[%clk 0:03:16]}
57. Ra6+ {[%clk 0:00:38.5]} 57... Kh5 {[%clk 0:03:14.4]} 58. Ra8 {[%clk
0:00:33.3]} 58... Rh3+ {[%clk 0:03:13.1]} 59. Ke4 {[%clk 0:00:29.2]} 59... Rb3
{[%clk 0:03:12.3]} 60. Rh8+ {[%clk 0:00:25.2]} 60... Kg4 {[%clk 0:03:10.6]} 61.
Rf8 {[%clk 0:00:16.1]} 61... Rb4+ {[%clk 0:03:09.6]} 62. Ke3 {[%clk 0:00:13.2]}
62... Rb3+ {[%clk 0:03:07.3]} 63. Ke4 {[%clk 0:00:08.7]} 63... Rf3 {[%clk
0:03:06.4]} 64. Kd4 {[%clk 0:00:06.3]} 64... Rxf2 {[%clk 0:03:05.5]} 65. Ke5
{[%clk 0:00:04.3]} 65... Nd3+ {[%clk 0:03:04.5]} 66. Ke6 {[%clk 0:00:02.5]}
66... Rxf8 {[%clk 0:03:04.4]} 0-1

[Event "Live Chess"]
[Site "Chess.com"]
[Date "2023.05.21"]
[Round "-"]
[White "jimwad"]
[Black "domrobson"]
[Result "1-0"]
[WhiteElo "1239"]
[BlackElo "1747"]
[TimeControl "300"]
[EndTime "17:07:46 PDT"]
[Termination "jimwad won by resignation"]

1. c4 {[%clk 0:04:58.6]} 1... Nf6 {[%clk 0:04:58.8]} 2. g3 {[%clk 0:04:57.5]}
2... e6 {[%clk 0:04:57.5]} 3. Bg2 {[%clk 0:04:56.8]} 3... d5 {[%clk 0:04:57.1]}
4. cxd5 {[%clk 0:04:55.2]} 4... exd5 {[%clk 0:04:56.1]} 5. d4 {[%clk 0:04:53.8]}
5... c6 {[%clk 0:04:55.4]} 6. Nc3 {[%clk 0:04:52.7]} 6... Nbd7 {[%clk
0:04:54.6]} 7. e3 {[%clk 0:04:51.7]} 7... Be7 {[%clk 0:04:53.6]} 8. Nge2 {[%clk
0:04:50.9]} 8... Kf8 {[%clk 0:04:53]} 9. O-O {[%clk 0:04:50.1]} 9... Nb6 {[%clk
0:04:52.4]} 10. b3 {[%clk 0:04:45.9]} 10... Be6 {[%clk 0:04:51.6]} 11. Nf4
{[%clk 0:04:43.9]} 11... Bf5 {[%clk 0:04:48.9]} 12. a4 {[%clk 0:04:35.6]} 12...
g5 {[%clk 0:04:45.4]} 13. Nfe2 {[%clk 0:04:32.7]} 13... h5 {[%clk 0:04:43.3]}
14. Ba3 {[%clk 0:04:31.2]} 14... h4 {[%clk 0:04:36.7]} 15. Bxe7+ {[%clk
0:04:29.4]} 15... Qxe7 {[%clk 0:04:35.7]} 16. gxh4 {[%clk 0:04:07.1]} 16... gxh4
{[%clk 0:04:33]} 17. h3 {[%clk 0:04:04.7]} 17... Rg8 {[%clk 0:04:31.2]} 18. Kh2
{[%clk 0:04:03.7]} 18... Re8 {[%clk 0:04:20.6]} 19. Nf4 {[%clk 0:04:01.8]} 19...
Ne4 {[%clk 0:04:12.6]} 20. Bxe4 {[%clk 0:03:58.4]} 20... Bxe4 {[%clk 0:04:10.3]}
21. Rg1 {[%clk 0:03:56.8]} 21... f5 {[%clk 0:03:57]} 22. Rxg8+ {[%clk
0:03:54.1]} 22... Kxg8 {[%clk 0:03:55.6]} 23. Qg1+ {[%clk 0:03:53.6]} 23... Kh8
{[%clk 0:03:54]} 24. Ng6+ {[%clk 0:03:51.7]} 1-0

[Event "Live Chess"]
[Site "Chess.com"]
[Date "2023.05.21"]
[Round "-"]
[White "alanmike75"]
[Black "LutherSullivan"]
[Result "1-0"]
[WhiteElo "1566"]
[BlackElo "2106"]
[TimeControl "300"]
[EndTime "17:07:54 PDT"]
[Termination "alanmike75 won on time"]

1. e4 {[%clk 0:04:56.3]} 1... c5 {[%clk 0:04:58.2]} 2. Nf3 {[%clk 0:04:54.8]}
2... Nc6 {[%clk 0:04:57.7]} 3. Nc3 {[%clk 0:04:53.5]} 3... g6 {[%clk 0:04:55.7]}
4. Be2 {[%clk 0:04:52.3]} 4... Bg7 {[%clk 0:04:54.8]} 5. O-O {[%clk 0:04:51.3]}
5... e6 {[%clk 0:04:52.9]} 6. d3 {[%clk 0:04:48.1]} 6... d5 {[%clk 0:04:48.5]}
7. Bg5 {[%clk 0:04:41.7]} 7... Nge7 {[%clk 0:04:26.9]} 8. exd5 {[%clk
0:04:33.7]} 8... exd5 {[%clk 0:04:25.1]} 9. Re1 {[%clk 0:04:27.6]} 9... Be6
{[%clk 0:04:23.4]} 10. Bf1 {[%clk 0:04:24.5]} 10... h6 {[%clk 0:04:17.4]} 11.
Bf4 {[%clk 0:04:20.2]} 11... O-O {[%clk 0:04:02.9]} 12. Qd2 {[%clk 0:04:14]}
12... Kh7 {[%clk 0:03:41.6]} 13. Ne5 {[%clk 0:04:05.4]} 13... Nxe5 {[%clk
0:03:12.3]} 14. Bxe5 {[%clk 0:04:03.4]} 14... Bxe5 {[%clk 0:03:01]} 15. Rxe5
{[%clk 0:03:59.5]} 15... Nc6 {[%clk 0:02:57.4]} 16. Ree1 {[%clk 0:03:56.5]}
16... Qf6 {[%clk 0:02:53.4]} 17. a3 {[%clk 0:03:45.2]} 17... Rae8 {[%clk
0:02:43]} 18. Rad1 {[%clk 0:03:41.9]} 18... a6 {[%clk 0:02:24.8]} 19. g3 {[%clk
0:03:30.9]} 19... Nd4 {[%clk 0:02:13.5]} 20. Bg2 {[%clk 0:03:26.7]} 20... Nf3+
{[%clk 0:02:10.5]} 21. Bxf3 {[%clk 0:03:22.7]} 21... Qxf3 {[%clk 0:02:09.6]} 22.
Qe3 {[%clk 0:03:20.9]} 22... Qxe3 {[%clk 0:01:28.4]} 23. fxe3 {[%clk 0:03:18.3]}
23... Rd8 {[%clk 0:01:12.9]} 24. e4 {[%clk 0:03:15.7]} 24... d4 {[%clk
0:01:08.6]} 25. Ne2 {[%clk 0:03:13.6]} 25... Bg4 {[%clk 0:01:06.2]} 26. Rd2
{[%clk 0:03:12.1]} 26... Bxe2 {[%clk 0:00:56.6]} 27. Rdxe2 {[%clk 0:03:10.1]}
27... b5 {[%clk 0:00:49.4]} 28. Rf2 {[%clk 0:03:03.4]} 28... Kg7 {[%clk
0:00:48.5]} 29. Ref1 {[%clk 0:03:01.7]} 29... Rd6 {[%clk 0:00:42.3]} 30. g4
{[%clk 0:02:55.8]} 30... c4 {[%clk 0:00:36.7]} 31. h3 {[%clk 0:02:40.1]} 31...
a5 {[%clk 0:00:34.9]} 32. Rf4 {[%clk 0:02:35]} 32... b4 {[%clk 0:00:28.4]} 33.
axb4 {[%clk 0:02:32.6]} 33... cxd3 {[%clk 0:00:25.8]} 34. cxd3 {[%clk 0:02:30]}
34... axb4 {[%clk 0:00:25.3]} 35. Rc1 {[%clk 0:02:17.1]} 35... Rd7 {[%clk
0:00:24.6]} 36. Rc4 {[%clk 0:02:14.9]} 36... Ra8 {[%clk 0:00:23]} 37. Rxb4
{[%clk 0:02:10.9]} 37... Ra2 {[%clk 0:00:22.6]} 38. Kf2 {[%clk 0:02:01.9]} 38...
Rc7 {[%clk 0:00:22.1]} 39. Kf3 {[%clk 0:01:56.7]} 39... Rc2 {[%clk 0:00:21.6]}
40. e5 {[%clk 0:01:54.1]} 40... Raxb2 {[%clk 0:00:20.5]} 41. Rxb2 {[%clk
0:01:52.5]} 41... Rxb2 {[%clk 0:00:20.1]} 42. Rxd4 {[%clk 0:01:51]} 42... Rb5
{[%clk 0:00:14.5]} 43. Ke4 {[%clk 0:01:48.8]} 43... Ra5 {[%clk 0:00:13.8]} 44.
h4 {[%clk 0:01:45.8]} 44... Kf8 {[%clk 0:00:13.1]} 45. g5 {[%clk 0:01:43.3]}
45... hxg5 {[%clk 0:00:10.1]} 46. hxg5 {[%clk 0:01:41.9]} 46... Ke7 {[%clk
0:00:09.8]} 47. Rb4 {[%clk 0:01:39.2]} 47... Ra1 {[%clk 0:00:09.4]} 48. Rb7+
{[%clk 0:01:36.8]} 48... Ke6 {[%clk 0:00:09]} 49. Rb6+ {[%clk 0:01:35.5]} 49...
Ke7 {[%clk 0:00:08.7]} 50. Rb7+ {[%clk 0:01:34.4]} 50... Ke6 {[%clk 0:00:08.4]}
51. Rb6+ {[%clk 0:01:33.1]} 51... Ke7 {[%clk 0:00:08.1]} 52. d4 {[%clk
0:01:22.7]} 52... Rg1 {[%clk 0:00:07.6]} 53. Kf4 {[%clk 0:01:12.8]} 53... Rf1+
{[%clk 0:00:06.8]} 54. Ke4 {[%clk 0:01:10.8]} 54... Rg1 {[%clk 0:00:06.6]} 55.
d5 {[%clk 0:01:05.2]} 55... Rxg5 {[%clk 0:00:06.1]} 56. Rb7+ {[%clk 0:01:03.7]}
56... Ke8 {[%clk 0:00:04.9]} 57. d6 {[%clk 0:01:01.6]} 57... Rg1 {[%clk
0:00:04.5]} 58. Kd5 {[%clk 0:00:56.2]} 58... Kf8 {[%clk 0:00:03.9]} 59. e6
{[%clk 0:00:50.3]} 59... Rd1+ {[%clk 0:00:03.4]} 60. Kc6 {[%clk 0:00:47.2]}
60... fxe6 {[%clk 0:00:03.1]} 61. Rb8+ {[%clk 0:00:42.6]} 61... Kf7 {[%clk
0:00:02.7]} 62. Rb7+ {[%clk 0:00:38.6]} 62... Kf6 {[%clk 0:00:02]} 63. Rb8
{[%clk 0:00:29.8]} 63... Rc1+ {[%clk 0:00:00.9]} 64. Kd7 {[%clk 0:00:26.4]}
64... g5 {[%clk 0:00:00.6]} 65. Ke8 {[%clk 0:00:24.4]} 65... Rh1 {[%clk
0:00:00.3]} 66. Kd7 {[%clk 0:00:18]} 1-0

[Event "Live Chess"]
[Site "Chess.com"]
[Date "2023.05.21"]
[Round "-"]
[White "chessfiction"]
[Black "blowerd"]
[Result "1-0"]
[WhiteElo "2333"]
[BlackElo "1391"]
[TimeControl "300"]
[EndTime "17:08:08 PDT"]
[Termination "chessfiction won by checkmate"]

1. e4 {[%clk 0:04:59.8]} 1... e5 {[%clk 0:04:55.6]} 2. f4 {[%clk 0:04:58.4]}
2... exf4 {[%clk 0:04:51.6]} 3. Nf3 {[%clk 0:04:58.3]} 3... Be7 {[%clk
0:04:50.1]} 4. Bc4 {[%clk 0:04:56.1]} 4... Bh4+ {[%clk 0:04:48.3]} 5. Kf1 {[%clk
0:04:54.2]} 5... Nc6 {[%clk 0:04:41]} 6. d4 {[%clk 0:04:49.8]} 6... b6 {[%clk
0:04:29.7]} 7. Bxf4 {[%clk 0:04:47.4]} 7... a5 {[%clk 0:04:26]} 8. Nc3 {[%clk
0:04:43.9]} 8... Ba6 {[%clk 0:04:24]} 9. Bxa6 {[%clk 0:04:42.7]} 9... Rxa6
{[%clk 0:04:21.7]} 10. d5 {[%clk 0:04:42.6]} 10... Nce7 {[%clk 0:04:18.8]} 11.
Nxh4 {[%clk 0:04:40]} 11... Ng6 {[%clk 0:04:08.6]} 12. Nxg6 {[%clk 0:04:38.8]}
12... fxg6 {[%clk 0:04:07.2]} 13. Qd3 {[%clk 0:04:37.4]} 13... Nf6 {[%clk
0:04:02.9]} 14. Qxa6 {[%clk 0:04:35.2]} 14... O-O {[%clk 0:04:00.1]} 15. e5
{[%clk 0:04:32.9]} 15... Ng4 {[%clk 0:03:58]} 16. Qc4 {[%clk 0:04:30.4]} 16...
Ne3+ {[%clk 0:03:52.7]} 17. Ke2 {[%clk 0:04:24.1]} 17... Nxc4 {[%clk 0:03:51.1]}
18. Rhf1 {[%clk 0:04:21]} 18... Nxb2 {[%clk 0:03:39.7]} 19. Rae1 {[%clk
0:04:18.9]} 19... Nc4 {[%clk 0:03:34.8]} 20. Kd3 {[%clk 0:04:18]} 20... Qh4
{[%clk 0:03:13.1]} 21. g3 {[%clk 0:04:13.7]} 21... Qxh2 {[%clk 0:02:59.6]} 22.
Kxc4 {[%clk 0:04:10.1]} 22... Qxc2 {[%clk 0:02:56.7]} 23. a4 {[%clk 0:04:02.2]}
23... Qb2 {[%clk 0:02:45.1]} 24. e6 {[%clk 0:03:54.4]} 24... Qb4+ {[%clk
0:02:42.1]} 25. Kd3 {[%clk 0:03:52.7]} 25... dxe6 {[%clk 0:02:35.4]} 26. dxe6
{[%clk 0:03:51.6]} 26... Rd8+ {[%clk 0:02:32.1]} 27. Kc2 {[%clk 0:03:50.7]}
27... Qc4 {[%clk 0:02:18.5]} 28. e7 {[%clk 0:03:45.8]} 28... Qd3+ {[%clk
0:02:14.7]} 29. Kb2 {[%clk 0:03:44.7]} 29... Re8 {[%clk 0:02:04.5]} 30. Bxc7
{[%clk 0:03:43.4]} 30... Qd2+ {[%clk 0:01:59.9]} 31. Kb3 {[%clk 0:03:41.9]}
31... Qd7 {[%clk 0:01:51]} 32. Bd8 {[%clk 0:03:21.9]} 32... Qd6 {[%clk 0:01:36]}
33. Rf4 {[%clk 0:03:18]} 33... b5 {[%clk 0:01:17.5]} 34. axb5 {[%clk 0:03:13.1]}
34... Qc5 {[%clk 0:01:08.9]} 35. Ref1 {[%clk 0:03:10.4]} 35... a4+ {[%clk
0:01:03.4]} 36. Kc2 {[%clk 0:03:08.3]} 36... a3 {[%clk 0:00:59.6]} 37. Rf8+
{[%clk 0:03:07.2]} 37... Rxf8 {[%clk 0:00:57.4]} 38. exf8=Q+ {[%clk 0:03:07.1]}
38... Qxf8 {[%clk 0:00:54.6]} 39. Rxf8+ {[%clk 0:03:07]} 39... Kxf8 {[%clk
0:00:53.4]} 40. b6 {[%clk 0:03:06.9]} 40... a2 {[%clk 0:00:50.3]} 41. Nxa2
{[%clk 0:03:03.7]} 41... Ke8 {[%clk 0:00:46.3]} 42. b7 {[%clk 0:03:03.6]} 42...
Kxd8 {[%clk 0:00:44.7]} 43. b8=Q+ {[%clk 0:03:03.5]} 43... Kd7 {[%clk
0:00:43.7]} 44. Qa7+ {[%clk 0:03:03.2]} 44... Ke6 {[%clk 0:00:42.7]} 45. Qxg7
{[%clk 0:03:03.1]} 45... Kf5 {[%clk 0:00:41.7]} 46. Qxh7 {[%clk 0:03:03]} 46...
Kg5 {[%clk 0:00:40.7]} 47. Qh4+ {[%clk 0:03:01.3]} 47... Kf5 {[%clk 0:00:38.7]}
48. Nc3 {[%clk 0:03:00.6]} 48... Ke5 {[%clk 0:00:36]} 49. Qg5+ {[%clk 0:02:59]}
49... Ke6 {[%clk 0:00:34.7]} 50. Qxg6+ {[%clk 0:02:58.1]} 50... Ke5 {[%clk
0:00:31.9]} 51. Qe4+ {[%clk 0:02:56.1]} 51... Kd6 {[%clk 0:00:30.1]} 52. g4
{[%clk 0:02:55.1]} 52... Kc5 {[%clk 0:00:28.6]} 53. g5 {[%clk 0:02:55]} 53...
Kb6 {[%clk 0:00:24.3]} 54. g6 {[%clk 0:02:54.9]} 54... Kc5 {[%clk 0:00:21.5]}
55. g7 {[%clk 0:02:53.9]} 55... Kd6 {[%clk 0:00:20.7]} 56. g8=Q {[%clk
0:02:51.8]} 56... Kc7 {[%clk 0:00:19.1]} 57. Qf7+ {[%clk 0:02:50.8]} 57... Kd6
{[%clk 0:00:17.7]} 58. Qfe7# {[%clk 0:02:49.2]} 1-0

[Event "Live Chess"]
[Site "Chess.com"]
[Date "2023.05.21"]
[Round "-"]
[White "KeithArkell"]
[Black "LiamBellwood"]
[Result "1-0"]
[WhiteElo "2607"]
[BlackElo "2057"]
[TimeControl "300"]
[EndTime "17:08:33 PDT"]
[Termination "KeithArkell won by resignation"]

1. d4 {[%clk 0:04:57.7]} 1... e6 {[%clk 0:04:59.9]} 2. Nf3 {[%clk 0:04:55.4]}
2... f5 {[%clk 0:04:59.1]} 3. g3 {[%clk 0:04:53.9]} 3... Nf6 {[%clk 0:04:57]} 4.
Bg2 {[%clk 0:04:53.3]} 4... Be7 {[%clk 0:04:56.3]} 5. O-O {[%clk 0:04:52.7]}
5... O-O {[%clk 0:04:56]} 6. b3 {[%clk 0:04:51.8]} 6... d6 {[%clk 0:04:49.1]} 7.
c4 {[%clk 0:04:50.4]} 7... a5 {[%clk 0:04:43.3]} 8. Nc3 {[%clk 0:04:48.7]} 8...
Ne4 {[%clk 0:04:42.4]} 9. Bb2 {[%clk 0:04:47.6]} 9... Nxc3 {[%clk 0:04:41.4]}
10. Bxc3 {[%clk 0:04:47]} 10... Qe8 {[%clk 0:04:41.3]} 11. Qd3 {[%clk
0:04:40.1]} 11... Qh5 {[%clk 0:04:36.3]} 12. e4 {[%clk 0:04:26.5]} 12... f4
{[%clk 0:04:31.9]} 13. e5 {[%clk 0:04:24.9]} 13... d5 {[%clk 0:04:29.2]} 14. c5
{[%clk 0:04:22.2]} 14... b6 {[%clk 0:04:22.5]} 15. Rfe1 {[%clk 0:04:17.1]} 15...
Ba6 {[%clk 0:04:06.5]} 16. Qd1 {[%clk 0:04:15.1]} 16... Nd7 {[%clk 0:03:59.8]}
17. cxb6 {[%clk 0:04:13.6]} 17... cxb6 {[%clk 0:03:48.2]} 18. Bd2 {[%clk
0:04:11.3]} 18... fxg3 {[%clk 0:03:40.1]} 19. hxg3 {[%clk 0:04:10]} 19... Bd3
{[%clk 0:03:30.9]} 20. Rc1 {[%clk 0:04:05.3]} 20... Be4 {[%clk 0:03:29.3]} 21.
Nh4 {[%clk 0:04:03.9]} 21... Qxd1 {[%clk 0:03:14.6]} 22. Rexd1 {[%clk
0:04:01.2]} 22... Bxg2 {[%clk 0:03:11.3]} 23. Nxg2 {[%clk 0:03:58.9]} 23... Rac8
{[%clk 0:03:10.8]} 24. Nf4 {[%clk 0:03:57.6]} 24... Kf7 {[%clk 0:03:05.2]} 25.
Kg2 {[%clk 0:03:55.7]} 25... g5 {[%clk 0:03:03.4]} 26. Nd3 {[%clk 0:03:53.9]}
26... h6 {[%clk 0:02:59.7]} 27. g4 {[%clk 0:03:52.5]} 27... Rfd8 {[%clk
0:02:57.8]} 28. f4 {[%clk 0:03:51.5]} 28... gxf4 {[%clk 0:02:50.3]} 29. Bxf4
{[%clk 0:03:50.5]} 29... Bg5 {[%clk 0:02:48.1]} 30. Kg3 {[%clk 0:03:49]} 30...
Nf8 {[%clk 0:02:44]} 31. Rf1 {[%clk 0:03:41.4]} 31... Ke7 {[%clk 0:02:21.2]} 32.
Rh1 {[%clk 0:03:30.3]} 32... Rxc1 {[%clk 0:02:04.2]} 33. Rxc1 {[%clk 0:03:23.6]}
33... Kd7 {[%clk 0:01:58.6]} 34. Bxg5 {[%clk 0:02:49]} 34... hxg5 {[%clk
0:01:57.5]} 35. Ne1 {[%clk 0:02:46.1]} 35... Ng6 {[%clk 0:01:53]} 36. Nf3 {[%clk
0:02:44.9]} 36... Nf4 {[%clk 0:01:50.8]} 37. Rc2 {[%clk 0:02:40.2]} 37... Rc8
{[%clk 0:01:38]} 38. Rxc8 {[%clk 0:02:38.2]} 38... Kxc8 {[%clk 0:01:37.9]} 39.
Nxg5 {[%clk 0:02:37]} 39... Ne2+ {[%clk 0:01:37.4]} 40. Kh4 {[%clk 0:02:36.5]}
40... Nxd4 {[%clk 0:01:37.3]} 41. Kh5 {[%clk 0:02:30.3]} 41... Kd7 {[%clk
0:01:32.4]} 42. Kg6 {[%clk 0:02:28.7]} 42... Ke7 {[%clk 0:01:28.8]} 43. Kg7
{[%clk 0:01:57.9]} 43... b5 {[%clk 0:01:25.6]} 44. Kh6 {[%clk 0:01:48.4]} 44...
a4 {[%clk 0:01:20.9]} 45. bxa4 {[%clk 0:01:47.1]} 45... bxa4 {[%clk 0:01:20.8]}
46. a3 {[%clk 0:01:40.5]} 46... Ne2 {[%clk 0:00:56.6]} 47. Nf3 {[%clk
0:01:39.6]} 47... d4 {[%clk 0:00:53.6]} 48. g5 {[%clk 0:01:39]} 48... Kf7 {[%clk
0:00:46.8]} 49. Kh7 {[%clk 0:01:38.2]} 49... Nf4 {[%clk 0:00:35.6]} 50. Nxd4
{[%clk 0:01:37.2]} 50... Ke7 {[%clk 0:00:34.9]} 51. g6 {[%clk 0:01:35.6]} 51...
Nh3 {[%clk 0:00:08.1]} 52. g7 {[%clk 0:01:33.3]} 52... Ng5+ {[%clk 0:00:07.5]}
53. Kg6 {[%clk 0:01:32.7]} 1-0

[Event "Live Chess"]
[Site "Chess.com"]
[Date "2023.05.21"]
[Round "-"]
[White "Cimon"]
[Black "elvenstar"]
[Result "0-1"]
[WhiteElo "1861"]
[BlackElo "1564"]
[TimeControl "300"]
[EndTime "17:09:19 PDT"]
[Termination "elvenstar won - game abandoned"]

1. Nf3 {[%clk 0:04:58.7]} 1... d5 {[%clk 0:04:58.8]} 2. d4 {[%clk 0:04:57.3]}
2... Nc6 {[%clk 0:04:57.4]} 3. Bf4 {[%clk 0:04:52.3]} 3... Bf5 {[%clk
0:04:55.7]} 4. c3 {[%clk 0:04:51.3]} 4... e6 {[%clk 0:04:54.6]} 5. h3 {[%clk
0:04:49.6]} 5... Nf6 {[%clk 0:04:53.3]} 6. e3 {[%clk 0:04:42.9]} 6... Be7 {[%clk
0:04:52.2]} 7. Nbd2 {[%clk 0:04:41]} 7... O-O {[%clk 0:04:42.5]} 8. Nh4 {[%clk
0:04:38]} 8... Bg6 {[%clk 0:04:39.4]} 9. Nxg6 {[%clk 0:04:36]} 9... hxg6 {[%clk
0:04:38.6]} 10. Bd3 {[%clk 0:04:31.3]} 10... Bd6 {[%clk 0:04:33.9]} 11. g3
{[%clk 0:04:20.4]} 11... Ne7 {[%clk 0:04:26.2]} 12. g4 {[%clk 0:04:16.1]} 12...
c5 {[%clk 0:04:24.2]} 13. Bg5 {[%clk 0:04:05.5]} 13... cxd4 {[%clk 0:04:21.6]}
14. cxd4 {[%clk 0:04:00.8]} 14... Qb6 {[%clk 0:04:12.2]} 15. b3 {[%clk
0:03:56.1]} 15... Bb4 {[%clk 0:04:09.8]} 16. O-O {[%clk 0:03:53.3]} 16... Bd6
{[%clk 0:03:57.5]} 17. Rc1 {[%clk 0:03:47.1]} 17... Rac8 {[%clk 0:03:43.5]} 18.
Qf3 {[%clk 0:03:45]} 18... Nh7 {[%clk 0:03:35]} 19. Bf4 {[%clk 0:03:34.1]} 19...
Qb4 {[%clk 0:03:20.3]} 20. Bxd6 {[%clk 0:03:19.1]} 20... Qxd6 {[%clk 0:03:18.7]}
0-1